bitfinex/quotes_ETHUSD_20240819
["timestamp","ask_amount","ask_price","bid_price","bid_amount"]
[1724041148060,2.3079,2644.8,2644.6,0.83328263]
[1724041148223,2.3079,2644.8,2644.5,1.97309821]
[1724041148423,2.3079,2644.8,2644.6,0.83327997]
[1724041148737,2.3079,2644.8,2644.5,1.97309821]
[1724041148951,2.3079,2644.8,2644.6,0.83327264]
[1724041149147,2.3079,2644.8,2644.5,1.97307668]
[1724041149536,2.3079,2644.8,2644.6,0.8332749]
[1724041149819,0.0442123,2644.7,2644.5,1.97308563]
[1724041150143,2.3079,2644.8,2644.5,1.97311805]
[1724041150354,0.04412491,2644.6,2644.3,1.209304]
[1724041150532,2.3079,2644.8,2644.4,4.67187808]
[1724041150732,2.3079,2644.8,2644.5,2.14873119]
[1724041151060,2.3079,2644.8,2644.4,0.55]
[1724041151261,2.3079,2644.8,2644.5,2.14872524]
[1724041151426,2.3079,2644.8,2644.4,2.52313359]
[1724041152559,2.3079,2644.8,2644.4,3.35642818]
[1724041152781,2.3235,2644.7,2644.4,1.38329459]
[1724041153463,2.3235,2644.7,2644.4,3.35642818]
[1724041153657,0.04409731,2644.6,2644.4,3.35642818]
[1724041154036,2.27,2644.5,2644.4,0.83329459]
[1724041154239,2.27,2644.5,2644.1,3.59927923]
[1724041154240,2.31403981,2644.5,2644.1,3.59927923]
[1724041154447,2.31403981,2644.5,2644.0,2.76598464]
[1724041154764,2.27,2644.5,2644.1,1.31556241]
[1724041155128,0.04403252,2644.4,2644.1,1.31556241]
[1724041155328,0.04403252,2644.4,2644.0,2.64749]
[1724041155675,2.27,2644.5,2644.1,3.96294533]
[1724041155833,2.27,2644.5,2644.3,2.64712]
[1724041156038,2.27,2644.5,2644.4,0.55]
[1724041156762,2.27,2644.5,2644.1,6.24669655]
[1724041156928,2.27,2644.5,2644.2,2.75158706]
[1724041157133,2.27,2644.5,2644.2,1.43610444]
[1724041157380,0.04400256,2644.4,2644.2,1.43610444]
[1724041159175,0.04400256,2644.4,2644.3,2.6472]
[1724041159351,0.04400256,2644.4,2644.3,3.1972]
[1724041162236,0.04400256,2644.4,2644.2,2.64729]
[1724041162470,0.04400256,2644.4,2644.0,3.65581131]
[1724041162703,0.04400256,2644.4,2644.1,1.54027094]
[1724041163372,0.04400256,2644.4,2644.1,6.83500094]
[1724041163959,0.04400256,2644.4,2644.1,4.18761094]
[1724041165863,0.04400256,2644.4,2644.2,2.64723]
[1724041166685,0.04400256,2644.4,2644.3,2.6472]
[1724041166854,2.3827,2644.7,2644.3,3.1972]
[1724041167093,0.0441093,2644.6,2644.5,2.64696]
[1724041167459,0.0441093,2644.6,2644.5,3.19696]
[1724041170361,2.4705,2644.9,2644.5,3.19696]
[1724041170589,0.0441116,2644.6,2644.5,3.19696]
[1724041170796,2.4705,2644.9,2644.6,2.64688]
[1724041171295,0.04422658,2644.8,2644.6,2.64688]
[1724041172019,0.04422658,2644.8,2644.7,5.8436]
[1724041172198,0.04422658,2644.8,2644.7,9.67682946]
[1724041172504,2.3503,2645.3,2644.9,2.64656]
[1724041172817,2.3503,2645.1,2644.7,3.0]
[1724041173099,2.3503,2644.9,2644.6,3.0]
[1724041173326,2.3503,2644.9,2644.5,3.83322946]
[1724041173813,2.3503,2644.9,2644.4,4.25509]
[1724041173971,2.3503,2644.8,2644.4,0.83327257]
[1724041174175,2.3503,2644.7,2644.3,3.48045845]
[1724041174480,2.68930537,2644.8,2644.4,0.83330137]
[1724041174481,0.04256818,2644.6,2644.4,0.83330137]
[1724041174787,2.3503,2644.5,2644.4,0.83331538]
[1724041174985,2.39291441,2644.5,2644.4,0.83331538]
[1724041182729,2.39291441,2644.5,2644.1,2.64738]
[1724041182878,2.39291441,2644.5,2644.2,0.83336785]
[1724041183081,2.39291441,2644.5,2644.3,0.83336785]
[1724041183315,2.39291441,2644.5,2644.1,2.64738]
[1724041183520,2.39291441,2644.5,2644.2,0.833369]
[1724041183821,2.39291441,2644.5,2644.3,0.833369]
[1724041184027,2.3284,2644.4,2643.9,2.64758]
[1724041184316,2.3284,2644.2,2644.0,0.83342443]
[1724041184559,2.3284,2644.2,2644.1,0.83342443]
[1724041185919,2.3705963,2644.2,2644.1,0.83342443]
[1724041187045,2.3705963,2644.2,2644.1,0.83341974]
[1724041187788,2.3705963,2644.2,2644.1,3.48081974]
[1724041188408,0.0421963,2644.2,2644.1,3.48081974]
[1724041188634,0.0421963,2644.2,2644.1,4.37028786]
[1724041188936,2.4615,2644.4,2644.3,2.6472]
[1724041192316,2.4615,2644.4,2644.2,2.64729]
[1724041192521,2.4615,2644.4,2644.2,5.29452]
[1724041192721,2.4615,2644.4,2644.3,2.6472]
[1724041193809,2.2865,2644.6,2644.4,2.64706]
[1724041194041,2.2865,2644.6,2644.3,1.50513358]
[1724041194042,2.2865,2644.9,2644.5,2.64699]
[1724041194357,2.2865,2644.9,2644.8,2.6467]
[1724041194571,2.2865,2645.2,2645.0,2.64644]
[1724041194725,2.2865,2645.2,2645.1,2.6464]
[1724041195127,2.2865,2645.2,2644.9,2.64652]
[1724041195309,2.2865,2645.2,2645.0,0.55]
[1724041197962,0.04119514,2645.1,2645.0,0.55]
[1724041200454,0.04119514,2645.1,2645.0,3.97809608]
[1724041200969,2.2865,2645.2,2645.0,3.97809608]
[1724041201491,0.04114202,2645.1,2645.0,3.97809608]
[1724041201950,2.2865,2645.2,2645.0,3.97809608]
[1724041202248,2.2865,2645.2,2645.1,2.6464]
[1724041202469,2.4156,2645.6,2645.1,3.85884961]
[1724041202632,2.4156,2645.6,2645.2,0.55]
[1724041203270,2.4156,2645.6,2644.9,0.83309068]
[1724041203271,4.0819,2645.4,2644.9,0.83309068]
[1724041203426,2.64606,2645.5,2644.6,0.83319035]
[1724041203427,2.4739,2645.0,2644.6,0.83319035]
[1724041203620,2.4739,2645.0,2644.5,7.61980298]
[1724041203820,2.4739,2645.0,2644.6,2.14846156]
[1724041204014,2.4739,2645.0,2644.6,0.83320642]
[1724041204216,2.4739,2645.0,2644.5,4.97287298]
[1724041204217,2.253,2644.9,2644.5,3.0]
[1724041204443,2.253,2644.9,2644.4,5.80612627]
[1724041204752,2.253,2644.9,2644.4,3.83325329]
[1724041204969,0.03962452,2644.8,2644.4,3.83325329]
[1724041205252,0.03962452,2644.8,2644.5,2.64695]
[1724041205551,0.03962452,2644.8,2644.6,2.64682]
[1724041205755,0.03962452,2644.8,2644.5,2.44123128]
[1724041206057,0.03962452,2644.8,2644.6,0.55]
[1724041212961,2.64686,2644.7,2644.5,0.83323451]
[1724041213164,2.3292,2644.5,2644.1,2.80644671]
[1724041213320,2.3292,2644.5,2644.0,4.6206922]
[1724041213529,0.03914022,2644.4,2644.0,2.64748]
[1724041213726,2.3292,2644.3,2644.0,3.48087554]
[1724041214460,0.03920675,2644.2,2644.0,3.48087554]
[1724041214710,2.3292,2644.3,2644.0,3.48087554]
[1724041214869,0.03920675,2644.2,2644.0,3.48087554]
[1724041215056,2.3292,2644.3,2644.0,3.48087554]
[1724041215384,0.03917454,2644.2,2644.0,0.83339554]
[1724041215589,0.03917454,2644.2,2643.8,4.62099516]
[1724041215938,0.03911627,2644.1,2643.9,2.1491028]
[1724041216186,0.03911627,2644.1,2643.9,0.8334468]
[1724041216394,2.3292,2644.3,2643.9,0.8334468]
[1724041216560,0.03905876,2644.0,2643.9,0.8334468]
[1724041216764,2.3292,2644.3,2643.9,2.14910382]
[1724041216966,0.03905876,2644.0,2643.9,0.8334468]
[1724041217160,2.3292,2644.3,2643.9,2.14910391]
[1724041217367,0.03905876,2644.0,2643.8,3.4810668]
[1724041217578,2.2611,2644.2,2643.8,3.4810668]
[1724041217777,2.30010124,2643.9,2643.8,3.4810668]
[1724041217991,2.2611,2643.9,2643.8,5.34675743]
[1724041218168,2.30010124,2643.9,2643.8,5.34675743]
[1724041218572,2.30010124,2643.9,2643.8,1.31569063]
[1724041218977,2.30010124,2643.9,2643.8,2.14916709]
[1724041219287,0.03900124,2643.9,2643.8,2.14917048]
[1724041219476,2.2611,2644.1,2643.8,2.14917048]
[1724041219670,0.03904342,2644.0,2643.8,0.83347646]
[1724041219899,0.03904342,2644.0,2643.7,7.62127104]
[1724041220084,0.03904342,2644.0,2643.8,1.31567618]
[1724041220256,0.03904342,2644.0,2643.7,0.8334562]
[1724041220457,2.3245,2643.9,2643.8,1.31570931]
[1724041220655,2.3245,2643.9,2643.6,7.02222209]
[1724041220656,2.3634859,2643.9,2643.7,2.14917348]
[1724041220855,2.3634859,2643.9,2643.7,0.83346417]
[1724041221259,2.3634859,2643.9,2643.6,7.85567626]
[1724041221480,2.3634859,2643.9,2643.7,1.86570559]
[1724041221675,2.3634859,2643.9,2643.7,3.19779]
[1724041224495,2.3634859,2643.9,2643.8,2.6477]
[1724041225082,0.0389859,2643.9,2643.8,2.6477]
[1724041225290,2.4124,2644.1,2643.8,3.9633469]
[1724041225463,0.0386907,2644.0,2643.8,2.6477]
[1724041226496,0.0386907,2644.0,2643.9,3.96315527]
[1724041226791,2.4124,2644.3,2644.0,2.64748]
[1724041226954,2.4124,2644.3,2644.2,2.6473]
[1724041227394,2.4124,2644.3,2644.2,3.1973]
[1724041228961,2.4512717,2644.3,2644.2,3.1973]
[1724041230664,2.4512717,2644.3,2643.9,3.48090202]
[1724041230873,2.4512717,2644.3,2644.0,0.55]
[1724041232074,2.49891339,2644.3,2644.0,0.55]
[1724041232275,2.49891339,2644.3,2644.0,1.38336202]
[1724041233019,2.49891339,2644.3,2644.0,0.55]
[1724041233303,2.49891339,2644.3,2644.1,0.83340124]
[1724041233803,2.49891339,2644.3,2644.1,0.83340105]
[1724041234568,2.49891339,2644.3,2644.1,0.83339934]
[1724041235175,2.49891339,2644.3,2644.1,3.48079934]
[1724041235381,2.49891339,2644.3,2644.1,2.6474]
[1724041237902,2.49891339,2644.3,2644.2,0.83337481]
[1724041238107,2.49891339,2644.3,2644.1,2.6474]
[1724041239100,2.49891339,2644.3,2644.1,5.29474]
[1724041239268,2.49891339,2644.3,2644.2,0.83340393]
[1724041243222,2.74880473,2644.3,2644.2,0.83340393]
[1724041243422,2.2663,2644.1,2643.5,2.64793]
[1724041243611,2.2691,2643.8,2643.6,0.83356605]
[1724041243785,2.2691,2643.8,2643.7,0.83356605]
[1724041243985,2.2691,2643.8,2643.3,5.29626]
[1724041244185,2.2691,2643.8,2643.4,0.8336069]
[1724041244489,2.2691,2643.8,2643.5,0.8336069]
[1724041244696,2.2691,2643.8,2643.6,0.8336069]
[1724041244901,2.2691,2643.8,2643.4,3.0]
[1724041245083,2.2691,2643.8,2643.5,0.83358784]
[1724041245285,2.2691,2643.8,2643.6,0.83358784]
[1724041245484,2.2691,2643.8,2643.7,0.83358784]
[1724041245996,2.2691,2643.8,2643.7,3.48138784]
[1724041246212,2.2691,2643.8,2643.7,2.6478]
[1724041246410,2.2691,2643.8,2643.7,3.4813275]
[1724041247339,2.35526195,2643.8,2643.7,3.4813275]
[1724041247546,2.35526195,2643.8,2643.7,3.481327]
[1724041247689,2.2691,2643.8,2643.7,3.481327]
[1724041248196,2.35527192,2643.8,2643.7,3.481327]
[1724041248400,0.08617192,2643.8,2643.7,7.489421]
[1724041248603,0.08617192,2643.8,2643.7,11.80512991]
[1724041248803,2.4143,2644.1,2643.9,2.64757]
[1724041249004,1.608,2644.6,2644.1,2.64732]
[1724041249005,2.3517,2644.5,2644.1,2.64732]
[1724041249401,0.08651931,2644.4,2644.1,2.64732]
[1724041249606,2.3517,2644.3,2644.1,2.64732]
[1724041250007,0.08640788,2644.2,2644.1,2.64732]
[1724041250216,0.08640788,2644.2,2644.1,3.19732]
[1724041250403,11.54473,2644.8,2644.2,2.6473]
[1724041250700,2.432,2644.7,2644.2,2.6473]
[1724041250915,4.1265302,2644.6,2644.2,2.6473]
[1724041251448,4.1265302,2644.6,2644.1,0.55]
[1724041251610,2.3291,2644.5,2644.1,0.55]
[1724041251954,2.3291,2644.4,2643.9,4.62092033]
[1724041252096,2.3291,2644.3,2644.0,0.83341603]
[1724041252290,2.3291,2644.3,2644.0,2.64748]
[1724041252511,2.3291,2644.3,2644.1,0.83339618]
[1724041252725,2.3291,2644.3,2644.0,2.64748]
[1724041253503,2.3291,2644.3,2643.9,1.97336033]
[1724041253705,2.3291,2644.3,2644.0,0.83342089]
[1724041253706,2.3479,2644.2,2644.0,0.83342089]
[1724041254000,1.608,2644.4,2643.8,4.62104033]
[1724041254001,2.3479,2644.1,2643.8,4.62104033]
[1724041254220,2.3479,2644.1,2643.9,2.14904451]
[1724041254425,2.3479,2644.1,2644.0,0.83342172]
[1724041254623,2.3479,2644.1,2643.9,1.97336033]
[1724041254947,2.3479,2644.1,2644.0,0.83342193]
[1724041256545,2.3479,2644.1,2644.0,2.14906018]
[1724041256715,2.3479,2644.1,2644.0,0.83342193]
[1724041256912,2.3479,2644.1,2643.7,4.20956201]
[1724041257112,2.3479,2644.1,2643.8,7.12278093]
[1724041257413,2.3479,2644.1,2643.9,2.14921509]
[1724041257633,2.3479,2644.1,2643.8,3.41671096]
[1724041257937,2.3479,2644.1,2643.9,4.12277861]
[1724041257938,2.847412,2644.1,2643.9,4.12277861]
[1724041258248,2.847412,2644.1,2643.6,0.41671096]
[1724041258249,2.2908,2643.9,2643.6,0.41671096]
[1724041258441,2.2908,2643.9,2643.7,2.1493658]
[1724041258600,2.48433757,2643.8,2643.6,0.83354644]
[1724041258801,2.48433757,2643.8,2643.4,0.41680216]
[1724041259017,2.48433757,2643.8,2643.5,2.14955518]
[1724041259312,2.48433757,2643.8,2643.3,0.79285105]
[1724041259313,2.48433757,2643.8,2643.4,0.79285105]
[1724041259501,3.44713487,2643.8,2643.5,2.14948985]
[1724041259701,3.44713487,2643.8,2643.4,1.97384046]
[1724041259702,6.09483487,2643.8,2643.4,1.97384046]
[1724041259902,2.48433757,2643.8,2643.5,2.14948777]
[1724041260156,2.48433757,2643.8,2643.6,2.14943147]
[1724041260357,2.48433757,2643.8,2643.5,4.62178119]
[1724041260501,2.48433757,2643.8,2643.6,2.1494126]
[1724041260702,2.48433757,2643.8,2643.5,2.64799]
[1724041260918,2.48433757,2643.8,2643.6,2.14939292]
[1724041261160,2.48433757,2643.8,2643.5,2.80733219]
[1724041261357,2.48433757,2643.8,2643.5,1.97381313]
[1724041262334,2.48433757,2643.8,2643.4,3.44089105]
[1724041262538,2.48433757,2643.8,2643.5,4.1231788]
[1724041262712,2.48433757,2643.8,2643.5,1.97376968]
[1724041262914,2.48433757,2643.8,2643.5,4.62176968]
[1724041263128,2.48433757,2643.8,2643.4,3.44088105]
[1724041263436,2.48433757,2643.8,2643.5,6.77116508]
[1724041263643,2.48433757,2643.8,2643.5,4.62176061]
[1724041263830,2.48433757,2643.8,2643.6,2.6479]
[1724041264138,2.48433757,2643.8,2643.7,6.7708348]
[1724041264139,0.08613757,2643.8,2643.7,6.7708348]
[1724041264305,2.4564,2644.0,2643.7,8.71839998]
[1724041264506,0.08616569,2643.9,2643.8,2.14931729]
[1724041264718,0.08616569,2643.9,2643.7,6.56900655]
[1724041265036,0.08616569,2643.9,2643.7,1.94756518]
[1724041265337,0.08616569,2643.9,2643.7,0.55]
[1724041265725,0.08616569,2643.9,2643.5,3.44084105]
[1724041265931,2.2537,2643.8,2643.6,4.12300028]
[1724041266141,0.08605959,2643.7,2643.5,0.83355428]
[1724041266360,2.2537,2643.6,2643.3,3.0]
[1724041266653,2.33973282,2643.6,2643.3,1.97391503]
[1724041267009,2.33973282,2643.6,2643.4,0.83363315]
[1724041267207,2.33973282,2643.6,2643.4,0.83362649]
[1724041267408,2.33973282,2643.6,2643.3,1.97391503]
[1724041268042,2.33973282,2643.6,2643.2,4.25627]
[1724041268242,2.2537,2643.6,2643.3,2.14959965]
[1724041268448,0.08597708,2643.5,2643.2,6.23021377]
[1724041268663,2.2537,2643.6,2643.3,2.14959632]
[1724041268956,2.2537,2643.6,2643.2,6.23021377]
[1724041269243,2.2537,2643.6,2643.3,2.14959938]
[1724041269448,2.4027,2643.4,2643.3,0.83364577]
[1724041269806,2.48862133,2643.4,2643.3,0.83364577]
[1724041270210,2.48862133,2643.4,2643.2,4.25627]
[1724041270412,2.48862133,2643.4,2643.3,0.83364235]
[1724041271162,2.48862133,2643.4,2643.0,6.85809831]
[1724041271163,2.98288346,2643.4,2643.0,0.83364235]
[1724041271359,2.98288346,2643.4,2642.8,0.8337612]
[1724041271360,3.9961,2643.3,2642.8,0.8337612]
[1724041271562,2.3943,2643.2,2642.9,0.8337612]
[1724041271851,0.0857042,2643.1,2642.7,2.6488]
[1724041272010,2.3943,2643.0,2642.8,0.83377464]
[1724041272412,0.08559266,2642.9,2642.8,0.83377464]
[1724041273754,0.08559266,2642.9,2642.8,3.48247464]
[1724041275411,0.08559266,2642.9,2642.8,6.82358721]
[1724041275727,2.4332,2643.3,2643.0,2.64848]
[1724041276148,0.08575996,2643.2,2643.0,2.64848]
[1724041276453,0.08575996,2643.2,2642.9,0.83371129]
[1724041276454,2.4332,2643.3,2642.8,3.89111257]
[1724041276754,2.4332,2643.3,2643.0,2.6485]
[1724041276755,0.0857042,2643.1,2643.0,2.6485]
[1724041277271,2.4332,2643.3,2643.0,2.6485]
[1724041277717,2.2836,2643.5,2643.0,0.65395526]
[1724041277920,7.29,2643.6,2643.5,2.648]
[1724041278139,2.2836,2643.7,2643.5,2.9128]
[1724041278347,2.2836,2643.7,2643.5,2.648]
[1724041278348,0.08594763,2643.6,2643.5,2.648]
[1724041279059,2.2836,2643.7,2643.6,2.6479]
[1724041279217,2.2836,2643.7,2643.6,3.1979]
[1724041279417,2.36378692,2643.7,2643.6,3.1979]
[1724041280439,0.08018692,2643.7,2643.6,5.8458]
[1724041280627,2.2836,2643.9,2643.8,2.6477]
[1724041281018,2.2836,2644.2,2643.8,5.29533]
[1724041281219,2.2836,2644.2,2643.8,2.64763]
[1724041281427,2.2836,2644.2,2643.6,3.19785]
[1724041281428,2.2836,2644.0,2643.6,3.19783]
[1724041282763,0.08029274,2643.9,2643.6,3.19783]
[1724041283757,2.4649,2643.8,2643.6,3.19783]
[1724041283951,0.0801805,2643.7,2643.6,3.19783]
[1724041284442,2.4649,2643.8,2643.5,0.83354934]
[1724041284648,2.97614,2643.8,2643.3,2.64818]
[1724041284988,0.08024373,2643.7,2643.4,2.6481]
[1724041285143,2.97614,2643.8,2643.4,2.6481]
[1724041285344,2.97614,2643.8,2643.4,3.48171188]
[1724041285543,2.97614,2643.8,2643.4,2.6481]
[1724041285544,0.08017896,2643.7,2643.4,2.6481]
[1724041285745,2.97614,2643.8,2643.4,2.64803]
[1724041286075,0.08017896,2643.7,2643.6,2.64783]
[1724041286242,0.08017896,2643.7,2643.4,2.64803]
[1724041286243,2.4649,2643.8,2643.4,5.29607]
[1724041286589,0.08023529,2643.7,2643.5,0.55]
[1724041286802,2.4649,2643.8,2643.5,3.198]
[1724041287144,0.08026043,2643.7,2643.5,3.198]
[1724041287362,2.4649,2643.8,2643.5,4.03158137]
[1724041287556,0.08023529,2643.7,2643.5,4.03158137]
[1724041287755,2.4649,2643.8,2643.5,4.03158137]
[1724041287956,0.08023529,2643.7,2643.5,4.03158137]
[1724041288175,2.4649,2643.8,2643.5,4.03158137]
[1724041288377,0.08022532,2643.7,2643.5,0.55]
[1724041288683,2.71139,2643.8,2643.5,0.55]
[1724041288847,2.53089472,2643.6,2643.5,0.55]
[1724041289049,2.4507,2643.6,2643.5,0.55]
[1724041289249,2.53089472,2643.6,2643.5,0.55]
[1724041290373,2.53089472,2643.6,2643.2,8.29647]
[1724041290568,2.4507,2643.6,2643.3,1.38362528]
[1724041290778,2.4507,2643.6,2643.4,0.83362528]
[1724041291096,0.08013437,2643.5,2643.3,0.55]
[1724041291388,2.4507,2643.6,2643.3,3.19818]
[1724041291609,2.720419,2643.6,2643.2,2.64822]
[1724041291749,0.08008255,2643.5,2643.3,0.83365553]
[1724041291944,2.2996,2643.4,2643.2,2.64822]
[1724041292144,2.2996,2643.4,2643.3,0.83365617]
[1724041292346,2.37977688,2643.4,2643.3,0.83365617]
[1724041292968,2.37977688,2643.4,2643.1,3.0]
[1724041293154,2.37977688,2643.4,2643.2,0.83365611]
[1724041293353,2.37977688,2643.4,2643.3,0.83365611]
[1724041293549,2.2996,2643.4,2643.3,0.83365611]
[1724041293791,2.3797669,2643.4,2643.3,0.83365611]
[1724041294090,0.0801669,2643.4,2643.3,4.39486872]
[1724041294294,0.0801669,2643.4,2643.3,8.90894729]
[1724041294455,2.2869,2643.7,2643.5,2.64793]
[1724041295988,2.2869,2644.2,2643.5,2.64793]
[1724041296152,2.2869,2644.1,2643.7,2.64777]
[1724041296560,2.64757,2644.0,2643.4,2.64809]
[1724041296787,2.3546,2643.9,2643.5,1.38357141]
[1724041297013,2.3546,2643.9,2643.5,0.55]
[1724041297171,2.96412664,2643.9,2643.4,2.64808]
[1724041297404,2.43490061,2643.8,2643.4,2.64808]
[1724041298017,2.468,2643.7,2643.2,4.62202614]
[1724041298223,3.03720273,2643.7,2643.3,0.83363817]
[1724041298432,0.08021427,2643.6,2643.1,10.27067477]
[1724041298732,2.3391,2643.5,2643.2,2.69963282]
[1724041299039,0.08016077,2643.4,2643.3,0.83365]
[1724041300633,5.1348,2643.3,2642.9,3.16325909]
[1724041300931,5.1348,2643.3,2642.8,2.76683357]
[1724041301142,0.07973513,2643.2,2642.9,0.83377851]
[1724041301347,5.1348,2643.3,2642.7,7.62272252]
[1724041301505,2.3596,2643.2,2642.8,4.12395979]
[1724041301721,2.43933513,2643.2,2642.9,0.8337836]
[1724041301965,2.43933513,2643.2,2642.8,1.97398252]
[1724041302169,2.43933513,2643.2,2642.9,0.8337757]
[1724041302389,2.99943664,2643.2,2642.7,4.62271252]
[1724041302641,2.3596,2643.1,2642.8,2.15002714]
[1724041302841,2.3596,2643.1,2642.7,4.62271252]
[1724041303011,2.3596,2643.1,2642.8,0.8338165]
[1724041303211,0.07960056,2643.0,2642.7,4.62271252]
[1724041303453,2.3596,2643.1,2642.8,0.83381683]
[1724041303633,2.3596,2643.1,2642.7,4.62271252]
[1724041303826,2.3596,2643.1,2642.8,0.83381699]
[1724041304036,2.3596,2643.1,2642.7,5.29745]
[1724041304220,2.3596,2643.1,2642.8,6.77301565]
[1724041304546,2.3596,2643.1,2642.8,2.64868]
[1724041304752,2.3596,2643.1,2642.7,5.28645033]
[1724041305046,2.3596,2643.1,2642.8,0.83381439]
[1724041305252,2.3596,2643.1,2642.7,4.62301189]
[1724041305412,2.3596,2643.1,2642.8,4.79867658]
[1724041305617,2.3596,2643.1,2642.9,0.83380659]
[1724041305954,2.3596,2643.1,2642.9,2.64858]
[1724041306451,0.07955911,2643.0,2642.9,2.64858]
[1724041306946,2.3596,2643.1,2642.9,2.64858]
[1724041307340,2.3596,2643.1,2642.8,0.83378343]
[1724041307528,2.3596,2643.1,2642.8,0.83381957]
[1724041307860,0.07956372,2643.0,2642.8,2.6487]
[1724041310038,0.07956372,2643.0,2642.7,3.48256607]
[1724041310245,2.3596,2643.1,2642.7,4.12025448]
[1724041310419,2.3596,2643.1,2642.8,2.64867]
[1724041310973,0.07956372,2643.0,2642.8,2.64867]
[1724041311348,2.3596,2643.1,2642.8,2.64867]
[1724041312063,0.07964055,2643.0,2642.8,2.64867]
[1724041313276,0.07964055,2643.0,2642.8,5.562167]
[1724041313467,0.07964055,2643.0,2642.8,6.39600629]
[1724041313666,0.07964055,2643.0,2642.9,5.2972]
[1724041313871,2.4734,2643.3,2642.9,5.8472]
[1724041314070,2.4734,2643.3,2642.9,6.68103929]
[1724041314383,2.4734,2643.3,2643.0,2.6485]
[1724041316156,2.4734,2643.3,2642.9,7.65217859]
[1724041316388,2.4734,2643.3,2642.9,6.68086172]
[1724041316882,2.4734,2643.3,2642.9,4.03226172]
[1724041317084,0.0797636,2643.2,2642.9,4.03226172]
[1724041317383,2.4734,2643.3,2642.9,3.19853]
[1724041317549,2.4734,2643.3,2642.9,4.03229682]
[1724041317858,2.4734,2643.3,2643.0,2.6485]
[1724041319187,0.07976283,2643.2,2643.0,2.6485]
[1724041319587,2.4734,2643.3,2643.0,2.6485]
[1724041320097,0.07976283,2643.2,2643.0,2.6485]
[1724041320298,0.07976283,2643.2,2643.1,2.6484]
[1724041320468,2.64765,2643.9,2643.1,10.32233735]
[1724041320469,2.2561,2643.6,2643.1,10.32233735]
[1724041320796,2.2561,2643.6,2643.2,0.83367399]
[1724041320983,0.07993776,2643.5,2643.2,0.83367543]
[1724041321189,2.2561,2643.6,2643.2,0.83367543]
[1724041321499,2.2561,2643.6,2643.3,2.6482]
[1724041321707,2.2561,2643.6,2643.1,8.96520123]
[1724041321863,2.2561,2643.6,2643.2,0.83365411]
[1724041322065,2.2561,2643.6,2643.1,7.25584212]
[1724041322265,2.2561,2643.6,2643.2,0.83367581]
[1724041322266,4.90407,2643.6,2643.2,0.83367581]
[1724041322562,2.36345656,2643.5,2643.1,3.0]
[1724041322836,2.36345656,2643.5,2643.1,2.64838]
[1724041322988,2.36345656,2643.5,2643.1,3.48211127]
[1724041323318,2.2834,2643.4,2643.0,3.0]
[1724041323490,2.2834,2643.4,2642.6,5.09976293]
[1724041323491,5.2978,2642.6,2642.5,0.1271751]
[1724041323684,5.2978,2642.6,2641.9,1.97484916]
[1724041323685,2.3614,2642.3,2641.9,1.97484916]
[1724041323941,5.2994,2641.8,2641.7,0.79350425]
[1724041324092,2.3614,2641.9,2641.7,0.79350425]
[1724041324446,2.3614,2641.9,2641.6,2.6499]
[1724041324447,0.07890926,2641.8,2641.6,2.6499]
[1724041324608,0.07890926,2641.8,2641.7,2.6498]
[1724041324807,2.3614,2641.9,2641.6,2.6499]
[1724041324999,2.3614,2641.9,2641.7,2.64979]
[1724041325000,0.07890926,2641.8,2641.7,2.64979]
[1724041325500,0.07890926,2641.8,2641.7,3.19979]
[1724041325901,2.3614,2642.2,2641.7,3.19979]
[1724041326647,2.3614,2642.2,2641.9,2.64959]
[1724041326789,2.3528,2642.6,2642.0,2.914439]
[1724041326994,0.07924309,2642.5,2641.9,2.64959]
[1724041327198,0.07924309,2642.5,2641.7,3.1998]
[1724041327199,2.64911,2642.4,2641.7,3.1998]
[1724041327518,0.07913149,2642.3,2642.0,2.64948]
[1724041327916,2.3528,2642.6,2642.0,2.64948]
[1724041328266,0.07924309,2642.5,2642.0,2.64948]
[1724041328779,2.3528,2642.6,2642.0,2.64948]
[1724041328928,2.852963,2642.6,2642.1,2.6494]
[1724041329274,0.07916761,2642.5,2642.2,2.6493]
[1724041329579,0.07916761,2642.5,2642.4,2.6491]
[1724041330146,0.07916761,2642.5,2642.2,0.81493]
[1724041330147,2.3519,2643.0,2642.5,2.64895]
[1724041331387,2.3519,2643.0,2642.7,2.64871]
[1724041331665,0.30255902,2643.3,2642.8,2.64867]
[1724041331666,2.2681,2643.3,2642.8,2.64867]
[1724041331832,2.2681,2643.3,2642.7,2.64873]
[1724041331833,0.22681,2643.2,2642.7,2.64873]
[1724041333099,0.22681,2643.2,2642.3,2.64914]
[1724041333100,2.64853,2643.0,2642.3,2.64914]
[1724041333235,2.55965128,2643.1,2642.4,3.1991]
[1724041333236,5.20812128,2643.1,2642.4,3.1991]
[1724041333434,0.52081213,2643.0,2642.4,3.1991]
[1724041333635,0.07693975,2642.9,2642.5,2.649]
[1724041335034,0.07693975,2642.9,2642.7,2.64872]
[1724041335172,0.07693975,2642.9,2642.8,2.913572]
[1724041335380,2.3354,2643.5,2642.9,2.64856]
[1724041335699,0.0771761,2643.4,2642.9,2.64856]
[1724041335891,0.0771761,2643.4,2642.9,5.29707]
[1724041336185,0.58322471,2643.4,2643.0,2.64849]
[1724041336335,0.58322471,2643.4,2642.9,2.64852]
[1724041336336,0.0771761,2643.4,2642.9,2.64852]
[1724041336697,0.0771761,2643.4,2643.1,2.64834]
[1724041338701,0.0771761,2643.4,2643.1,5.29666]
[1724041338915,0.0771761,2643.4,2643.2,2.6483]
[1724041339065,0.0771761,2643.4,2643.1,2.64832]
[1724041339256,0.0771761,2643.4,2643.2,2.64828]
[1724041339558,0.0771761,2643.4,2643.3,5.2964]
[1724041339806,0.0771761,2643.4,2643.3,5.8464]
[1724041340017,2.3919,2643.8,2643.5,2.64796]
[1724041340161,2.3919,2643.8,2643.6,0.55]
[1724041340365,0.07499193,2643.7,2643.6,0.55]
[1724041340681,2.3919,2644.2,2643.6,3.19782]
[1724041340993,2.3919,2644.2,2643.7,2.64779]
[1724041340994,0.529454,2644.1,2643.7,2.64779]
[1724041341200,2.3919,2644.2,2643.7,2.64779]
[1724041344633,0.07506938,2644.1,2643.7,2.64779]
[1724041344944,0.07506938,2644.1,2643.4,2.6481]
[1724041344945,2.6475,2644.1,2643.4,2.6481]